[Event "Budapest Chess Festival 2024"]
[Site "Budapest"]
[Date "2024.05.30"]
[Round "8.5"]
[White "Shagbazyan, Taron"]
[Black "Onyshchuk, Volodymyr"]
[Result "1-0"]
[ECO "E91"]
[WhiteElo "2403"]
[BlackElo "2619"]
[Annotator "TA"]
[PlyCount "61"]
[EventDate "2024.05.20"]
[EventType "swiss"]
[EventCountry "HUN"]
[SourceTitle "playchess.com"]
[Source "ChessBase"]
[SourceQuality "1"]
[TimeControl "40/5400+30:1800+30"]

{[%evp 15,61,21,26,25,28,27,28,19,30,24,25,21,29,31,64,66,83,79,86,75,77,68,220,217,258,260,257,249,317,314,326,322,314,322,285,285,639,637,625,612,639,619,586,575,686,658,681,389]} 1. d4 {[%emt 0:00:33]} Nf6 {[%emt 0:01:00]} 2. c4 {[%emt 0:00:11]} g6 {[%emt 0:00:04]} 3. Nc3 {[%emt 0:00:44]} Bg7 {[%emt 0:00:21]} 4. e4 {[%emt 0:00:05]} d6 {[%emt 0:00:55]} 5. Nf3 {[%emt 0:02:13]} O-O {[%emt 0:00:10]} 6. Be2 {[%emt 0:01:22]} c6 {[%emt 0:01:00]} 7. O-O {[%emt 0:01:15]} e5 {[%emt 0:00:52]} 8. dxe5 {[%emt 0:00:21]} dxe5 {[%emt 0:00:10]} 9. Nxe5 {[%emt 0:00:06]} Nxe4 {[%emt 0:11:07]} 10. Nxe4 {[%emt 0:03:01]} Bxe5 {[%emt 0:00:26]} 11. Bg5 {[%emt 0:00:14] White has an edge.} Qxd1 {[%emt 0:13:14]} 12. Rfxd1 {[%emt 0:00:05][%cal Bf1d1,Bd1d2,Bd2d6][%mdl 32]} Nd7 {[%emt 0:11:09]} 13. Nd6 {[%emt 0:09:44]} Nf6 {[%emt 0:05:54]} 14. Bf3 {[%emt 0:00:27]} a5 {[%emt 0:24:59]} 15. Rd2 {[%emt 0:04:49]} Kg7 {[%emt 0:08:21]} 16. Re1 {[%emt 0:01:46][%cal Ba1e1,Be1d1,Bd1d6][%mdl 32] White has more active pieces.} Bxd6 {[%emt 0:00:03]} 17. Rxd6 {[%emt 0:00:28]} Be6 {[%emt 0:00:01] Black is weak on the dark squares} 18. Bd2 $36 {[%emt 0:04:27][%mdl 2048] Bc3 is the strong threat. White has some pressure. This pair of bishops is nice.} h5 $2 {[%emt 0:11:29] Black cannot hold the game after this.} (18... Ne8 $14 19. Rd4 Kg8) 19. Bc3 $18 {[%emt 0:01:37]} Rad8 {[%emt 0:00:06] [#]} 20. Red1 {[%emt 0:06:08]} Rxd6 {[%emt 0:05:26]} 21. Rxd6 {[%emt 0:00:04]} h4 {[%emt 0:00:32]} 22. g4 {[%emt 0:02:12]} (22. Bxa5 Ra8 23. Bc3 Rxa2 $16) 22... hxg3 {[%emt 0:00:15]} 23. hxg3 {[%emt 0:03:25][%cal Bh2g3,Bg3g4,Bg4g5,Bg5g6][%mdl 32]} (23. Bxa5 gxf2+ 24. Kxf2 Rh8 $11 (24... Bxc4 25. Bc3 $18)) (23. fxg3 g5 24. a4 (24. Bxa5 Ra8 $16) 24... Kg6 $18) 23... g5 {[%emt 0:00:26][%cal Bg6g5,Bg5f4][%mdl 32]} 24. Be4 {[%emt 0:10:21]} (24. Bxa5 Ra8 25. Bc3 Kg6 $18) 24... Rh8 {[%emt 0:01:05]} 25. g4 {[%emt 0:00:47] [#] Black must now prevent f4.} Rh6 $2 {[%emt 0:00:57]} (25... Rh4) 26. f4 {[%emt 0:01:54] White is clearly winning.} Rh4 27. Bf3 {[%emt 0:03:24]} gxf4 {[%emt 0:00:38]} 28. g5 {[%emt 0:00:09]} (28. Bxa5 Nxg4 (28... Bxc4 $2 {perishes.} 29. Bc3 $18) 29. Rd4 c5 $11 (29... Ne5 30. Be2 $17)) 28... Kg6 {[%emt 0:00:31]} 29. Bxf6 {[%emt 0:01:24]} Bxc4 {[%emt 0:01:15]} 30. Be4+ {[%emt 0:00:44]} Kh5 {[%emt 0:00:02]} 31. g6 {[%emt 0:00:39] Weighted Error Value: White=0.00 (flawless) /Black=0.38.  Mistake:       	---       	Black=2      Inaccurate:     	---       	Black=1      OK:         	White=11    	Black=10     Best:        	White=2     	Black=2} 1-0

[Event "Budapest Chess Festival 2024"]
[Site "Budapest"]
[Date "2024.05.30"]
[Round "8.6"]
[White "Berkes, Ferenc"]
[Black "Stefansson, Vignir Vatnar"]
[Result "1-0"]
[ECO "D02"]
[WhiteElo "2618"]
[BlackElo "2463"]
[Annotator "TA"]
[PlyCount "69"]
[EventDate "2024.05.20"]
[EventType "swiss"]
[EventCountry "HUN"]
[SourceTitle "playchess.com"]
[Source "ChessBase"]
[SourceQuality "1"]
[TimeControl "40/5400+30:1800+30"]

{[%evp 9,69,10,11,5,20,27,25,8,18,13,25,10,8,12,10,0,0,0,0,0,0,0,8,17,21,20,28,21,62,64,75,90,76,69,72,76,125,72,123,113,157,166,194,189,161,185,181,175,238,225,299,314,327,310,654,670,623,553,1059,0,302,0]} 1. d4 d5 2. Nf3 Nf6 3. c4 e6 4. e3 a6 5. b3 c5 6. Be2 Nc6 7. O-O cxd4 8. exd4 {White has an edge.} b6 9. Nc3 Bb4 10. Bb2 O-O 11. a3 Bd6 12. cxd5 exd5 13. Rc1 Bd7 14. h3 Bf4 15. Rc2 Na5 16. Bc1 Bxc1 17. Rxc1 Qe7 18. b4 Nb7 19. Re1 Qd8 20. Ne5 {[%cal Bf3e5,Be5d3,Bd3f4][%mdl 32]} Be6 21. Bf3 {White has more active pieces.} b5 22. a4 Qb6 (22... bxa4 $142 23. Qxa4 (23. Nc6 Qd6 $14) 23... h6) 23. a5 ({White should try} 23. axb5 axb5 24. Ng4 Bxg4 25. hxg4) 23... Qd8 ({Better is} 23... Qd6) 24. Nd3 Nd6 25. Nf4 {[%csl LRd5,LRe6]} Qd7 26. Ncxd5 (26. Bxd5 Nxd5 27. Ncxd5 Bxd5 28. Nxd5 Nc4 $18) 26... Bxd5 27. Nxd5 Nxd5 28. Bxd5 Rac8 (28... Rad8 $142 29. Rc5 Nf5) 29. Qg4 $18 Qxg4 30. hxg4 Rxc1 31. Rxc1 {Black must now prevent Rc6.} Rc8 {[#]} (31... Rd8 32. Rc6 Ne8) 32. Rxc8+ Nxc8 {KB-KN} 33. Bb7 {[%csl LRa6,LRc8]} Nd6 {[%emt 1:19:19]} 34. Bd5 (34. Bxa6 Kf8 35. Bb7) 34... Nc8 $1 {[%emt 0:00:03]} 35. Bb7 $2 {[%emt 1:27:55][%mdl 32768] Weighted Error Value: White=0.27 (precise) /Black=0.29 (precise) .  Mistake:       	White=1     	Black=4      Inaccurate:     	---       	Black=3      OK:         	White=10    	Black=6      Best:        	White=1     	---        Strong:       	---       	Black=1     . Loss on time!?} (35. Kh2 $18 Nd6 36. Kg3) 1-0

[Event "Budapest Chess Festival 2024"]
[Site "Budapest"]
[Date "2024.05.30"]
[Round "8.7"]
[White "Shohat, Yotam"]
[Black "Prohaszka, Peter"]
[Result "1-0"]
[ECO "C70"]
[WhiteElo "2410"]
[BlackElo "2581"]
[Annotator "RC"]
[PlyCount "65"]
[EventDate "2024.05.20"]
[EventType "swiss"]
[EventCountry "HUN"]
[SourceTitle "playchess.com"]
[Source "ChessBase"]
[SourceQuality "1"]
[TimeControl "40/5400+30:1800+30"]

1. e4 {[%emt 0:00:33]} e5 {[%emt 0:00:37]} 2. Nf3 {[%emt 0:00:04]} Nc6 {[%emt 0:00:05]} 3. Bb5 {[%emt 0:00:05]} a6 {[%emt 0:00:05]} 4. Ba4 {[%emt 0:00:04]} Bc5 {[%emt 0:00:07]} 5. O-O {[%emt 0:00:20]} Nge7 {[%emt 0:00:08]} 6. c3 {[%emt 0:00:11]} Ba7 {[%emt 0:00:29]} 7. d4 {[%emt 0:00:15]} Ng6 {[%emt 0:00:06]} 8. Bg5 {[%emt 0:00:08]} f6 {[%emt 0:00:04]} 9. Be3 {[%emt 0:00:03]} O-O {[%emt 0:00:05]} 10. Nbd2 {[%emt 0:00:07]} Kh8 {[%emt 0:00:10]} 11. Re1 {[%emt 0:00:06]} exd4 {[%emt 0:00:18]} 12. Nxd4 {[%emt 0:00:06]} Nxd4 {[%emt 0:00:06]} 13. Bxd4 {[%emt 0:00:04]} d6 {[%emt 0:00:05]} 14. Bxa7 {[%emt 0:01:04]} Rxa7 {[%emt 0:00:01]} 15. Nf1 {[%emt 0:00:15]} f5 {[%emt 0:08:46]} 16. exf5 {[%emt 0:02:07]} Bxf5 {[%emt 0:01:00]} 17. Ng3 {[%emt 0:00:29]} Nh4 {[%emt 0:20:44]} 18. Nxf5 {[%emt 0:13:47]} Nxf5 {[%emt 0:00:07]} 19. Bc2 {[%emt 0:00:17]} Ra8 {[%emt 0:05:27]} 20. Qg4 {[%emt 0:06:39]} Qf6 {[%emt 0:11:56]} 21. Re2 {[%emt 0:04:52]} g6 {[%emt 0:01:30]} 22. Rae1 {[%emt 0:01:46]} Ng7 {[%emt 0:08:23]} 23. f3 {[%emt 0:09:01]} Rad8 {[%emt 0:00:02]} 24. Qb4 {[%emt 0:06:27]} Rb8 {[%emt 0:03:44]} 25. Bb3 {[%emt 0:08:58]} b5 {[%emt 0:05:10]} 26. Qa5 {[%emt 0:06:59]} Rb6 {[%emt 0:14:29]} 27. Re7 {[%emt 0:00:52]} d5 {[%emt 0:00:08]} 28. Qb4 {[%emt 0:00:00]} c6 29. Rc7 {[%emt 0:17:47]} Rbb8 {[%emt 0:09:19]} 30. Ree7 {[%emt 0:00:47]} Ne6 {[%emt 0:02:15]} 31. Rxc6 {[%emt 0:01:42]} a5 {[%emt 0:07:37]} 32. Rexe6 {[%emt 0:00:07]} Qxe6 {[%emt 0:02:01]} 33. Qd4+ {[%emt 0:00:06]} 1-0

[Event "Budapest Chess Festival 2024"]
[Site "Budapest"]
[Date "2024.05.30"]
[Round "8.8"]
[White "Yaniv, Yuval"]
[Black "Teclaf, Pawel"]
[Result "0-1"]
[ECO "B94"]
[WhiteElo "2337"]
[BlackElo "2568"]
[Annotator "TA"]
[PlyCount "90"]
[EventDate "2024.05.20"]
[EventType "swiss"]
[EventCountry "HUN"]
[SourceTitle "playchess.com"]
[Source "ChessBase"]
[SourceQuality "1"]
[TimeControl "40/5400+30:1800+30"]

{[%evp 12,90,2,0,18,12,18,7,2,13,15,10,0,0,6,0,2,0,0,-13,-12,-24,-6,-27,0,0,0,0,0,0,0,0,63,77,84,0,0,-203,-206,-233,-238,-252,-191,-185,-137,-439,-434,-499,-499,-486,-469,-471,-465,-581,-577,-850,-893,-885,-713,-908,-819,-912,-912,-885,-885,-1169,-1169,-1627,-1522,-1416,-1367,-5122,-5122,-5122,-5118,-5057,-1492,-1048,-1029,-870,-814]} 1. e4 {[%emt 0:00:42]} c5 {[%emt 0:00:34]} 2. Nf3 {[%emt 0:00:18]} d6 {[%emt 0:00:05]} 3. d4 {[%emt 0:00:25]} cxd4 {[%emt 0:01:20]} 4. Nxd4 {[%emt 0:00:09]} Nf6 {[%emt 0:00:03]} 5. Nc3 {[%emt 0:00:09]} a6 {[%emt 0:00:04]} 6. Bg5 {[%emt 0:00:22]} Nbd7 {[%emt 0:01:40]} 7. Bc4 {[%emt 0:00:59]} Qb6 {[%emt 0:00:03]} 8. Bb3 {[%emt 0:00:30]} e6 {[%emt 0:00:20]} 9. Bxf6 {[%emt 0:00:24]} Nxf6 {[%emt 0:02:41] The position is equal.} 10. Qd2 {[%emt 0:00:09]} Nd7 {[%emt 0:05:16]} 11. O-O-O {[%emt 0:00:11]} Nc5 {[%emt 0:00:25]} 12. Rhe1 {[%emt 0:05:08]} g6 {[%emt 0:21:02] Against Nf5} 13. f4 {[%emt 0:19:30]} Bd7 {[%emt 0:07:06]} 14. f5 {[%emt 0:07:21]} O-O-O {[%emt 0:01:47]} 15. fxe6 {[%emt 0:01:25]} fxe6 {[%emt 0:00:18]} 16. Rf1 {[%emt 0:06:09]} Bg7 {[%emt 0:08:10]} 17. Rf7 {[%emt 0:04:17]} Be5 {[%emt 0:10:04][%cal Oh8f8]} 18. Nf3 {[%emt 0:04:03]} Be8 {[%emt 0:02:37]} 19. Re7 {[%emt 0:13:57]} Bf6 {[%emt 0:05:04] This pair of bishops is nice.} 20. Rxe6 {[%emt 0:04:21]} Nxe6 {[%emt 0:03:31]} 21. Nd5 {[%emt 0:00:34] Against Nc7} Qc5 {[%emt 0:03:31]} (21... Bxb2+ $11 22. Kxb2 Qc5 23. Ne7+ Kd7) 22. Nxf6 $14 {[%emt 0:02:02]} Bf7 {[%emt 0:01:15]} 23. Kb1 ({Better is} 23. e5 $16 {Threatens to win with Ne4.} d5 (23... dxe5 $2 {perishes.} 24. Nd7 $18) 24. Kb1 (24. Nxd5 Nc7 $11)) 23... Kb8 $11 {[%emt 0:04:55]} 24. e5 $2 {[%emt 0:14:50]} dxe5 $19 {[%emt 0:01:39]} 25. Qxd8+ {[%emt 0:06:29]} Rxd8 {[%emt 0:00:08]} 26. Rxd8+ {[%emt 0:00:02]} Ka7 {[%emt 0:00:55]} 27. Rd1 {[%emt 0:05:55] [#]} Nd4 $40 {[%emt 0:03:06][%mdl 128] Black attacks with force.} 28. Nd7 $2 {[%emt 0:03:25][%mdl 8192] Loses the game.} (28. Bxf7 $2 {gets mated.} Qxc2+ 29. Ka1 Qxd1#) (28. Nxd4 $17 exd4 29. Bxf7) 28... Qc7 {[%emt 0:00:16] Black is clearly winning.} 29. Ndxe5 {[%emt 0:00:14]} Bxb3 {[%emt 0:00:15]} 30. Nxd4 {[%emt 0:00:12]} Bxc2+ {[%emt 0:00:21]} ({Don't play} 30... Qxe5 31. cxb3 Qe4+ (31... Qxh2 $2 32. Rd2 $19) 32. Kc1 Qxg2 33. Rd2 Qf1+ 34. Rd1) 31. Nxc2 {[%emt 0:00:09]} Qxe5 {[%emt 0:00:02][%mdl 4096] Endgame. KQ-KRN} 32. a3 {[%emt 0:01:36]} Qxh2 {[%emt 0:00:04]} 33. Ne3 {[%emt 0:00:07]} Qg3 {[%emt 0:00:27]} 34. Rd3 {[%emt 0:00:06]} h5 {[%emt 0:00:04]} 35. Kc2 {[%emt 0:00:17]} h4 {[%emt 0:00:07]} 36. Kd2 {[%emt 0:01:02]} Qf2+ {[%emt 0:00:03]} 37. Kc3 {[%emt 0:00:14]} g5 {[%emt 0:00:04]} 38. b3 {[%emt 0:01:16]} Qg3 {[%emt 0:00:28]} 39. Kd2 {[%emt 0:00:08]} g4 {[%emt 0:00:13] [#] And now ...h3 would win.} 40. Ke2 {[%emt 0:00:00]} h3 {[%emt 0:00:00]} 41. gxh3 {[%emt 0:01:33]} gxh3 {[%emt 0:00:11]} 42. Nf1 {[%emt 0:00:16]} Qg2+ {[%emt 0:00:04]} 43. Ke1 {[%emt 0:00:04]} Qe4+ {[%emt 0:00:10]} (43... h2 $142 44. Nxh2 Qxh2) 44. Kd2 {[%emt 0:00:10]} Qf4+ {[%emt 0:00:30]} 45. Ke2 {[%emt 0:00:06]} h2 {[%emt 0:00:03] Weighted Error Value: White=0.74/Black=0.24 (precise) .  Loses game:     	White=2     	---        Mistake:       	White=1     	Black=2      Inaccurate:     	White=1     	Black=1      OK:         	White=8     	Black=10     Best:        	White=3     	Black=7} 0-1

[Event "Budapest Chess Festival 2024"]
[Site "Budapest"]
[Date "2024.05.30"]
[Round "8.9"]
[White "Samunenkov, Ihor"]
[Black "Horvath, David"]
[Result "1-0"]
[ECO "D11"]
[WhiteElo "2547"]
[BlackElo "2313"]
[Annotator "TA"]
[PlyCount "89"]
[EventDate "2024.05.20"]
[EventType "swiss"]
[EventCountry "HUN"]
[SourceTitle "playchess.com"]
[Source "ChessBase"]
[SourceQuality "1"]
[TimeControl "40/5400+30:1800+30"]

{[%evp 26,89,11,22,19,18,31,0,0,-6,0,8,24,11,33,36,58,43,58,50,66,54,67,66,73,76,71,71,61,72,97,103,191,164,207,202,285,195,191,183,137,33,25,26,31,36,28,29,36,36,30,28,245,247,231,212,199,222,194,254,263,252,378,353,5618,5310]} 1. d4 {[%emt 0:00:37]} d5 {[%emt 0:00:37]} 2. c4 {[%emt 0:00:09]} c6 {[%emt 0:00:04]} 3. Nf3 {[%emt 0:00:10]} Nf6 {[%emt 0:00:05]} 4. g3 {[%emt 0:00:11]} g6 {[%emt 0:00:07]} 5. Bg2 {[%emt 0:00:10]} Bg7 {[%emt 0:00:04]} 6. cxd5 {[%emt 0:00:50]} cxd5 {[%emt 0:00:05]} 7. Nc3 {[%emt 0:00:09]} O-O {[%emt 0:01:09]} 8. Ne5 {[%emt 0:00:11]} Nc6 {[%emt 0:00:51]} 9. O-O {[%emt 0:00:22]} Bf5 {[%emt 0:07:38]} 10. Nxc6 {[%emt 0:04:21]} bxc6 {[%emt 0:00:31]} 11. Bf4 {[%emt 0:00:15]} Nd7 {[%emt 0:00:07]} 12. Rc1 {[%emt 0:14:26]} e5 {[%emt 0:07:43]} 13. dxe5 {[%emt 0:02:55]} Nxe5 {[%emt 0:00:08]} 14. b3 {[%emt 0:03:09]} Rc8 {[%emt 0:09:31]} 15. h3 {[%emt 0:10:46]} Qe7 {[%emt 0:10:00][%cal Od5d4]} 16. g4 {[%emt 0:15:42]} (16. e4 dxe4 17. Bxe5 (17. Nxe4 Rfd8 $17) 17... Qxe5 $17) 16... Be6 {[%emt 0:06:13] The position is equal.} 17. Qd2 {[%emt 0:04:45]} f5 {[%emt 0:11:53]} 18. g5 {[%emt 0:09:21]} Rfd8 {[%emt 0:26:07]} 19. Rfd1 Bf7 {[%emt 0:09:17]} 20. Na4 {[%emt 0:06:42]} Nd7 {[%emt 0:03:38]} 21. Rc2 {[%emt 0:04:31]} Nf8 {[%emt 0:00:21]} 22. Nc5 {[%emt 0:01:28]} Ne6 {[%emt 0:00:31]} 23. Nxe6 {[%emt 0:00:29]} Bxe6 {[%emt 0:00:16]} 24. b4 {[%emt 0:04:06]} c5 {[%emt 0:03:27]} 25. bxc5 {[%emt 0:03:48]} Rxc5 {[%emt 0:00:01]} 26. Rxc5 {[%emt 0:00:26]} Qxc5 {[%emt 0:00:02]} 27. Rc1 {[%emt 0:00:09] Wards off Bc3} Qe7 {[%emt 0:00:10]} 28. Qa5 {[%emt 0:02:53]} Rd7 {[%emt 0:03:11]} (28... Bf8 $16 29. a4 h6) 29. Rc8+ $18 {[%emt 0:03:39]} Kf7 {[%emt 0:00:02]} 30. h4 {[%emt 0:00:16][%cal Bh3h4,Bh4h5][%mdl 32]} Bd4 {[%emt 0:00:52]} (30... Rb7 $142) 31. Qa4 {[%emt 0:02:26]} Bg7 {[%emt 0:00:40] [#]} 32. h5 $1 {[%emt 0:02:01][%mdl 512] Black must now prevent h6.} Rb7 {[%emt 0:00:30]} 33. Rc6 {[%emt 0:03:10] White is more active.} ({White should play} 33. Ra8 $16 {Hoping for h6.} Rb4 34. Qa6 (34. Qxa7 Qxa7 35. Rxa7+ Kg8 $18) (34. hxg6+ Kxg6 35. Rxa7 Rxf4 $14) 34... Rxf4 35. Rxa7 (35. Qxa7 $2 Rc4 $19)) 33... Rb1+ $1 $14 {[%emt 0:00:32]} 34. Kh2 {[%emt 0:00:12]} Rb4 {[%emt 0:00:27]} 35. Qa5 $36 {[%emt 0:01:59][%mdl 2048] White is pushing.} (35. hxg6+ hxg6 36. Qa5 Rxf4 $11) 35... Rxf4 {[%emt 0:00:32]} 36. Rc7 {[%emt 0:00:05]} Bd7 {[%emt 0:00:24]} (36... Rh4+ 37. Kg1 Bd7 38. Qxd5+ Ke8 39. Rxa7 $14) 37. Qxd5+ {[%emt 0:00:46]} Ke8 {[%emt 0:00:08]} 38. Rxa7 {[%emt 0:00:54]} Ra4 $2 {[%emt 0:00:57] This move loses the game for Black.} (38... Qd8 39. Qg8+ Ke7 40. Qxg7+ Kd6 41. Ra6+ (41. Qxh7 Rxf2 42. Qxg6+ Kc5 $18) 41... Kc5 42. Qe5+ (42. hxg6 Qb8 $18) 42... Kb4 43. Qxf4+ Kb5 44. Ra3) (38... Rh4+ $1 $11 {and Black stays safe.} 39. Kg1 Qe6 40. Qxe6+ Bxe6 41. Rxg7 Rxh5) 39. Qa8+ $18 {[%emt 0:00:48]} Qd8 {[%emt 0:00:14]} 40. Rxa4 {[%emt 0:00:00]} Bxa4 {[%emt 0:00:00]} 41. Qxa4+ {[%emt 0:00:30]} Ke7 {[%emt 0:03:20]} 42. h6 {[%emt 0:04:43] [#] White wants to mate with Qa7+.} Be5+ {[%emt 0:12:57]} 43. f4 {[%emt 0:00:14]} Bd6 {[%emt 0:09:25]} (43... Bb8 $142 44. Qb4+ Qd6 45. Qxd6+ Bxd6) 44. Qd4 {[%emt 0:01:44] Strongly threatening Bc6.} Qa5 $2 {[%emt 0:00:52]} (44... Qc7 45. Qg7+ Ke8 46. Qg8+ Kd7 47. Qxh7+ Be7) 45. Bc6 {[%emt 0:00:29] Weighted Error Value: White=0.11 (very precise) /Black=0.28 (precise) .  Loses game:     	---       	Black=1      Mistake:       	White=1     	Black=4      Inaccurate:     	White=2     	---        OK:         	White=17    	Black=5      Best:        	White=6     	Black=6      Strong:       	---       	Black=1} 1-0

[Event "Budapest Chess Festival 2024"]
[Site "Budapest"]
[Date "2024.05.30"]
[Round "8.10"]
[White "Kantor, Gergely"]
[Black "Deuer, Marius"]
[Result "0-1"]
[ECO "B12"]
[WhiteElo "2527"]
[BlackElo "2436"]
[Annotator "TA"]
[PlyCount "77"]
[EventDate "2024.05.20"]
[EventType "swiss"]
[EventCountry "HUN"]
[SourceTitle "playchess.com"]
[Source "ChessBase"]
[SourceQuality "1"]
[TimeControl "40/5400+30:1800+30"]

{[%evp 11,77,6,7,0,0,0,0,0,0,0,-24,0,13,8,19,28,0,-56,0,-43,0,-10,18,8,22,0,0,0,0,0,0,0,0,0,0,0,0,0,0,0,0,-446,-406,-450,-444,-445,-441,-517,-429,-434,-423,-430,-424,-615,-431,-498,-483,-509,-509,-572,-583,-611,-623,-779,-783,-777,-754,-631]} 1. e4 c6 2. d4 d5 3. e5 Bf5 4. h4 h5 5. c4 e6 6. Nc3 Ne7 7. Nge2 Nd7 8. Ng3 Bg6 9. Bg5 {The position is equal.} Qb6 10. Rc1 Qxb2 11. Bd3 dxc4 12. Bxg6 Nxg6 13. O-O $1 Qa3 14. Nge4 ({Better is} 14. Nxh5 $11 Nb6 15. Ne4) 14... Nb6 (14... Bb4 $1 $15) 15. Rb1 Be7 16. Bxe7 Nxe7 17. Nd6+ Kf8 $1 18. Qf3 {[%csl Gd6][%cal Rf3f7] [#]} Nf5 $1 19. Nxf5 (19. Nxb7 $2 Nxd4 (19... Rb8 20. Nd6 $15) 20. Qe4 Qxc3 $19) 19... exf5 20. Qxf5 {[%cal Oe5e6]} Qxc3 21. e6 {[%csl Ge6][%cal Rf5f7]} Kg8 {Strongly threatening ...Rf8.} (21... Qxd4 22. Qxf7#) (21... f6 $6 22. Qg6 Kg8 (22... Qxd4 23. Qf7#) (22... Ke7 $2 23. Rxb6 Kd6 24. Rxb7 $18) 23. e7 $16) 22. Qxf7+ (22. exf7+ Kf8 23. Qc5+ Kxf7 24. Qf5+ Kg8 25. Qe6+ Kh7 26. Qe4+ Kh6 27. Qf4+ Kh7 28. Qe4+ Kh6 29. Qf4+ Kh7 30. Qe4+) 22... Kh7 {Hoping for ...Rhf8.} 23. Qxh5+ Kg8 24. Qf7+ Kh7 25. Qf5+ Kg8 {[%cal Oa8f8] ...Rf8! would now be deadly.} 26. Rbe1 $2 {[%mdl 8192] [#]} (26. Qf7+ $11 {and White is okay.} Kh7 27. Qh5+ (27. Qxb7 $2 Qxd4 28. Qxc6 Rac8 $19) 27... Kg8 28. Qf7+) 26... Rf8 $1 $19 (26... Qxd4 $2 {is the wrong capture.} 27. e7 Qd7 (27... Re8 $2 28. Qe6+ Kh7 29. Re5 $18) 28. Qxd7 Nxd7 29. e8=Q+ (29. e8=B $2 Nf6 $19) (29. e8=R+ Rxe8 30. Rxe8+ Kh7 $18) 29... Rxe8 30. Rxe8+ Kh7 31. Re7 $18) 27. Qg4 {e7 is the strong threat.} Rh6 {Black is clearly winning.} 28. Re5 Qb4 29. f4 ({Of course not} 29. e7 Re8 30. Re6 Qd2 $19) 29... Qe7 30. g3 Nd5 31. f5 c3 32. a4 (32. Qe2 $142) 32... b6 {[%cal Oh6e6] And now ...Rxe6! would win.} 33. Qe4 a6 34. Qd3 b5 {Inhibits Qc4.} 35. axb5 axb5 36. Ra1 Rhf6 {[%cal Og7g6]} 37. g4 Rh6 ({Weaker is} 37... b4 38. g5 $17) 38. g5 Rxh4 39. Qg3 {Weighted Error Value: White=0.39/Black=0.19 (very precise) .  Loses game:     	White=1     	---        Mistake:       	White=2     	Black=1      Inaccurate:     	White=1     	Black=2      OK:         	White=12    	Black=9      Best:        	White=1     	Black=1      Strong:       	White=1     	Black=3} 0-1

[Event "Budapest Chess Festival 2024"]
[Site "Budapest"]
[Date "2024.05.30"]
[Round "8.11"]
[White "Popovic, Dusan"]
[Black "Cabarkapa, Novak"]
[Result "0-1"]
[ECO "C00"]
[WhiteElo "2486"]
[BlackElo "2444"]
[Annotator "TA"]
[PlyCount "68"]
[EventDate "2024.05.20"]
[EventType "swiss"]
[EventCountry "HUN"]
[SourceTitle "playchess.com"]
[Source "ChessBase"]
[SourceQuality "1"]
[TimeControl "40/5400+30:1800+30"]

{[%evp 16,68,11,3,13,-3,0,-14,-21,-25,-21,-23,-22,-39,-37,-57,-54,-91,-56,-124,-123,-122,-91,-134,-118,-107,-92,-99,-105,-95,-104,-96,-84,-94,-72,-77,-61,-156,-148,-156,-134,-130,-122,-127,-112,-172,-170,-216,-225,-263,-262,-273,-251,-308,-303]} 1. e4 {[%emt 0:00:41]} e6 {[%emt 0:00:43]} 2. d3 {[%emt 0:00:17]} d5 {[%emt 0:00:14]} 3. Nd2 {[%emt 0:00:35]} Nf6 {[%emt 0:01:10]} 4. Ngf3 {[%emt 0:00:49]} Be7 {[%emt 0:01:41]} 5. g3 {[%emt 0:01:54]} O-O {[%emt 0:00:07]} 6. Bg2 {[%emt 0:00:16]} dxe4 {[%emt 0:00:13]} 7. dxe4 {[%emt 0:00:08]} Nc6 {[%emt 0:00:12]} 8. O-O {[%emt 0:02:01]} e5 {[%emt 0:00:16]} 9. c3 {[%emt 0:01:37]} a5 {[%emt 0:00:12]} 10. a4 {[%emt 0:02:13]} Bc5 {[%emt 0:04:51]} 11. Qe2 {[%emt 0:05:41]} b6 {[%emt 0:00:27] The position is equal.} 12. Nc4 {[%emt 0:02:06]} Ba6 {[%emt 0:00:08]} 13. b3 {[%emt 0:05:29]} Qe7 {[%emt 0:01:44]} 14. h3 {[%emt 0:07:45]} Qe6 {[%emt 0:05:03]} 15. Nfd2 {[%emt 0:07:38]} Rad8 {[%emt 0:03:44]} 16. Kh2 {[%emt 0:05:37]} Ne8 {[%emt 0:13:56] Black is much more active.} 17. f4 {[%emt 0:02:14]} ({White should play} 17. Bb2 $15) 17... exf4 $17 {[%emt 0:00:06]} 18. gxf4 {[%emt 0:00:17]} Nd6 {[%emt 0:00:19]} 19. e5 {[%emt 0:06:23]} Nxc4 {[%emt 0:00:15]} 20. Nxc4 {[%emt 0:00:10]} f6 {[%emt 0:05:29]} 21. Qg4 {[%emt 0:03:20]} Bxc4 {[%emt 0:05:16]} 22. bxc4 {[%emt 0:00:17]} Qxc4 {[%emt 0:00:28]} 23. exf6 {[%emt 0:02:57]} Rxf6 {[%emt 0:00:20]} ({Not} 23... Qxc3 24. Qxg7#) 24. f5 {[%emt 0:02:20] Prevents Rg6. White is weak on the dark squares} Qxc3 {[%emt 0:19:38]} 25. Bg5 {[%emt 0:02:45][%cal Oh2h1]} Ne5 {[%emt 0:02:07]} 26. Qh4 {[%emt 0:01:43] [#]} (26. Qe2 $15) 26... Rd4 $1 {[%emt 0:02:18]} 27. Qe1 {[%emt 0:01:13]} ({But not} 27. Bxf6 $2 Rxh4 28. Bxh4 Bd6 $19) 27... Qxe1 {[%emt 0:00:40]} 28. Raxe1 {[%emt 0:00:17] [#]} Bd6 $1 {[%emt 0:03:31] ...Nf3+ would now be deadly.} 29. Bxf6 {[%emt 0:00:32]} gxf6 {[%emt 0:00:26]} 30. Kh1 {[%emt 0:01:52]} (30. Ra1 $17) 30... Rxa4 $19 {[%emt 0:01:54]} 31. Bd5+ {[%emt 0:00:25]} (31. Rg1 {was necessary.} Kh8 32. Re3) 31... Kg7 {[%emt 0:00:53]} 32. Rg1+ {[%emt 0:00:12]} Kh6 {[%emt 0:00:05] Black has a decisive advantage.} 33. Rg8 {[%emt 0:03:15]} Rf4 {[%emt 0:00:56][%cal Oa5a4]} 34. Be6 {[%emt 0:01:35]} a4 {[%emt 0:00:27] Weighted Error Value: White=0.26 (precise) /Black=0.10 (very precise) .  Mistake:       	White=4     	---        Inaccurate:     	White=2     	Black=1      OK:         	White=3     	Black=9      Best:        	White=3     	Black=3      Strong:       	---       	Black=1} 0-1